Workbook

Sheet Payroll
B1: Payroll from handwritten Expenses list | M1: From Income Statement | P1: From tax return
M2: Contract Labor | N2: 8928.68
A3: Brandon's #'s | B3: 10210 | C3: 12123 | D3: 6833 | F3: 7801 | H3: 2776 | J3: =SUM(B3:I3) -> 39743
A4: My #'s | B4: =SUM(B6:B51) -> 10984.75 | C4: =SUM(C6:C51) -> 16713.5 | D4: =SUM(D6:D51) -> 8115.5 | E4: 1724 | F4: 0 | G4: 7093.25 | H4: 2776.5 | I4: 3025 | J4: =SUM(B4:I4,F3) -> 58233.5
B5: Jody | C5: Daniel | D5: Jeremy | E5: Robbie | F5: Andrew | G5: Tedrick | H5: Dusty | I5: Erec
B6: 406 | C6: 210 | D6: 406 | E6: 430 | G6: 590 | H6: 130 | I6: 448
B7: 468 | C7: 140 | D7: 461 | E7: 395 | G7: 270 | H7: 114 | I7: 550
B8: 208 | C8: 90 | D8: 600 | E8: 587 | G8: 105 | H8: 474.5 | I8: 216
B9: 214 | C9: 324 | D9: 160 | E9: 312 | G9: 300 | H9: 403 | I9: 534
B10: 191.5 | C10: 169 | D10: 168 | G10: 486.25 | H10: 325 | I10: 180
B11: 376 | C11: 203 | D11: 120 | G11: 487.5 | H11: 624 | I11: 300
B12: 705 | C12: 150 | D12: 240 | G12: 367.5 | H12: 481 | I12: 585
B13: 240 | C13: 351 | D13: 504 | G13: 308 | H13: 225 | I13: 212
B14: 228 | C14: 276 | D14: 156 | G14: 522
B15: 289 | C15: 228 | D15: 299 | G15: 847
B16: 287 | C16: 270 | D16: 228 | G16: 495
B17: 342 | C17: 300 | D17: 200 | G17: 790
B18: 521 | C18: 540 | D18: 85 | G18: 775
B19: 307 | C19: 247 | D19: 50 | G19: 300
B20: 286 | C20: 622.5 | D20: 112.5 | G20: 450
B21: 299 | C21: 273 | D21: 165
B22: 299 | C22: 360 | D22: 500
B23: 351 | C23: 608 | D23: 150
B24: 630.5 | C24: 460 | D24: 196
B25: 377 | C25: 420 | D25: 135
B26: 523.25 | C26: 533 | D26: 300
B27: 717 | C27: 500
B28: 943 | C28: 842
B29: 416.5 | C29: 409
B30: 308 | C30: 299
B31: 436 | C31: 650
B32: 266 | C32: 653
B33: 300 | C33: 507
B34: 50 | C34: 469
C35: 756
C36: 194
C37: 400
C38: 850
C39: 250
C40: 280
C41: 686 | D41: =SUM(C41:C46) -> 2880
C42: 348
C43: 756
C44: 369
C45: 381
C46: 340

Sheet Expenses
B2: Total | C2: =SUM(C3:C43) -> 174053.34
B3: Food | C3: 8714.09
B4: Truck Rentals | C4: 7608.23
B5: Hotels | C5: 5272.04
B6: Boxes & Supplies | C6: 10873.3
B7: Tools | C7: 2272.06
B8: Uniforms | C8: 2594.24
B9: Insurance | C9: 17496
B10: Damages | C10: 1708.11
B11: Out of town hired help
B12: Truck Maintenance | C12: 2486.85
B13: Merchant Services | C13: 600
B14: Google | C14: 30050.79
B15: Verizon | C15: 5484.12
B16: AT&T Phone | C16: 795.63
B17: Parking | C17: 3000
B18: Donations | C18: 450
B19: Electric | C19: 1984
B20: Water | C20: 514.06
B21: HOA | C21: 100
B22: Fuel in rental trucks | C22: 3896.15
B23: Home Repair | C23: 5487.75
B24: Tags | C24: 950
B25: Phones & Equip.
B26: CC fees | C26: 1601.72
B27: Advertising | C27: 21200
B28: Attorney Fees | C28: 3800
B29: Office Supplies | C29: 1744.6
B30: 2014 GMC | C30: 10267.92
B31: Tolls | C31: 316.5
B32: damaged roof on truck | C32: 1573.22
B33: YP | C33: 6000
B34: Medical | C34: 8333.96
B35: Life Insurancew | C35: 1668
B36: Citations | C36: 650
B37: Staffing Co | C37: 420
B38: Storage | C38: 3700
B39: Refund | C39: 440

Sheet Advertising
A1: Total Adv: | C1: Yellow Pages | G1: Mint Magazine | J1: Media Marketing Makeover | M1: Google
A2: =SUM(C2:X2) -> 44060.15 | E2: =SUM(E3:E24) -> 25121.63 | H2: =SUM(H3:H13) -> 1500 | K2: =SUM(K3:K6) -> 400 | N2: =SUM(N3:N14) -> 17038.52
C3: 2014-01-11 | D3: 2014-01-31 | E3: 564.59 | G3: 2014-08-25 | H3: 500 | J3: 2014-11-22 | K3: 400 | M3: 2014-01-01 | N3: 500
C4: 2014-01-23 | D4: 2014-02-12 | E4: 590.59 | G4: 2014-09-29 | H4: 500 | M4: 2014-02-01 | N4: 1000
C5: 2014-02-11 | D5: 2014-03-03 | E5: 537.41 | G5: 2024-10-03 | H5: 500 | M5: 2014-03-01 | N5: 500
C6: 2014-03-11 | D6: 2014-03-31 | E6: 539.71 | M6: 2014-04-01 | N6: 1520.66
C7: 2014-03-23 | D7: 2014-04-12 | E7: 438.89 | M7: 2014-05-01 | N7: 1500
C8: 2014-04-11 | D8: 2014-05-01 | E8: 528 | M8: 2014-06-01 | N8: 2014.95
C9: 2014-04-03 | D9: 2014-04-23 | E9: 1017.09 | M9: 2014-07-01 | N9: 2000
C10: 2014-05-03 | D10: 2014-05-23 | E10: 1039.17 | M10: 2014-08-01 | N10: 2502.91
C11: 2014-07-03 | D11: 2014-07-23 | E11: 1580.95 | M11: 2014-09-01 | N11: 1500
C12: 2014-06-03 | D12: 2014-07-23 | E12: 1580.95 | M12: 2014-10-01 | N12: 1500
C13: 2014-06-11 | D13: 2014-07-01 | E13: 535.1 | M13: 2014-11-01 | N13: 1000
C14: 2014-08-02 | D14: 2014-08-22 | E14: 634.85 | M14: 2014-12-01 | N14: 1500
C15: 2014-08-07 | D15: 2014-08-27 | E15: 15444
C16: 2014-12-02 | D16: 2014-12-22 | E16: 90.33

Sheet Insurance
C2: Goss Ins Agency | F2: Goss Ins Agency
C3: Commercial General Liability | F3: Commercial Vehicles
A4: =SUM(C4:P4) -> 9514.5 | C4: Annual | D4: 745.5 | F4: Annual | G4: 8769

Sheet Utilities & Tel
A1: TOTAL: | C1: AT&T Internet | F1: AT&T Phone
A2: =SUM(D2:S2) -> 957.61 | D2: =SUM(D3:D16) -> 123.17 | G2: =SUM(G3:G18) -> 834.44
C3: 2014-08-02 | D3: 26.5 | F3: 2014-01-11 | G3: 70.04
C4: 2014-08-01 | D4: 18.09 | F4: 2014-02-11 | G4: 76.93
C5: 2014-09-02 | D5: 17.5 | F5: 2014-03-11 | G5: 69.54 | H5: Missing statement. Used average of all other months.
C6: 2014-10-02 | D6: 16.5 | F6: 2014-04-11 | G6: 71.79
C7: 2014-11-02 | D7: 17.5 | F7: 2014-05-11 | G7: 69.81
C8: 2014-12-02 | D8: 27.08 | F8: 2014-06-11 | G8: 74.82
F9: 2014-07-11 | G9: 74.76
F10: 2014-08-11 | G10: 43.45
F11: 2014-09-11 | G11: 79
F12: 2014-10-11 | G12: 68.11
F13: 2014-11-11 | G13: 68.13
F14: 2014-12-11 | G14: 68.06

Sheet Tax, Lic, Fees
A3: TOTAL: | C3: TN DOR | F3: Permit & Fuel Tax | I3: Veh Registration | L3: City & County Tax | O3: Bond Renewal
A4: =SUM(D4:AA4) -> 1390 | D4: =SUM(D5:D17) -> 205 | G4: =SUM(G5:G17) -> 130 | J4: =SUM(J5:J17) -> 798 | M4: =SUM(M5:M17) -> 142 | P4: =SUM(P5:P17) -> 115
C5: 2014-06-09 | D5: 205 | F5: 2014-04-03 | G5: 130 | I5: 2014-11-15 | J5: 477.75 | L5: County | M5: 73 | O5: 2014-05-08 | P5: 115
I6: 2014-10-31 | J6: 320.25 | L6: City | M6: 69
